[Event "DLM Youth 2024"]
[Site "Tuebingen"]
[Date "2024.10.05"]
[Round "5"]
[White "Weber, Nikita"]
[Black "Wunderlich, Elias"]
[Result "0-1"]
[ECO "A13"]
[WhiteElo "2130"]
[BlackElo "2073"]
[Annotator "RC"]
[PlyCount "88"]
[EventDate "2024.10.03"]
[EventType "team-swiss"]
[EventRounds "7"]
[EventCountry "GER"]
[SourceTitle "playchess.com"]
[Source "ChessBase"]
[SourceQuality "1"]
[TimeControl "40/5400+30:1800+30"]

1. Nf3 {[%emt 0:00:03]} d5 {[%emt 0:00:05]} 2. c4 {[%emt 0:00:02]} e6 {[%emt 0:00:05]} 3. e3 {[%emt 0:00:02]} Nf6 {[%emt 0:00:07]} 4. Nc3 {[%emt 0:00:03]} Be7 {[%emt 0:00:06]} 5. b3 {[%emt 0:00:17]} b6 {[%emt 0:00:20]} 6. Bb2 {[%emt 0:01:15]} O-O {[%emt 0:00:16]} 7. Be2 {[%emt 0:00:28]} c5 {[%emt 0:00:13]} 8. cxd5 {[%emt 0:00:36]} Nxd5 {[%emt 0:01:24]} 9. Nxd5 {[%emt 0:02:02]} Qxd5 {[%emt 0:00:19]} 10. Ne5 {[%emt 0:08:12]} Nd7 {[%emt 0:11:52]} 11. Bf3 {[%emt 0:39:03]} Qd6 {[%emt 0:00:48]} 12. Nc4 {[%emt 0:09:46]} Qb8 {[%emt 0:00:07]} 13. Bxa8 {[%emt 0:00:24]} Qxa8 {[%emt 0:00:02]} 14. O-O {[%emt 0:00:13]} Rd8 {[%emt 0:09:11]} 15. Qc2 {[%emt 0:02:42]} b5 {[%emt 0:01:32]} 16. Ne5 {[%emt 0:03:25]} Nxe5 {[%emt 0:03:24]} 17. Bxe5 {[%emt 0:00:02]} Qd5 {[%emt 0:07:54]} 18. d4 {[%emt 0:00:41]} f6 {[%emt 0:00:40]} 19. Bc7 {[%emt 0:00:33]} Rd7 {[%emt 0:00:32]} 20. Bg3 {[%emt 0:00:34]} Bb7 {[%emt 0:01:07]} 21. f3 {[%emt 0:01:04]} cxd4 {[%emt 0:00:24]} 22. exd4 {[%emt 0:00:10]} Qxd4+ {[%emt 0:00:44]} 23. Bf2 {[%emt 0:00:01]} Qf4 {[%emt 0:00:40]} 24. Qe2 {[%emt 0:01:08]} Qf5 {[%emt 0:02:34]} 25. Rad1 {[%emt 0:02:36]} Rc7 {[%emt 0:02:04]} 26. Rc1 {[%emt 0:04:39]} Bd6 {[%emt 0:24:36]} 27. Rxc7 {[%emt 0:02:30]} Bxc7 {[%emt 0:00:07]} 28. Bxa7 {[%emt 0:00:34]} Kf7 {[%emt 0:01:19]} 29. Re1 {[%emt 0:00:40]} h5 {[%emt 0:03:40]} 30. Bf2 {[%emt 0:06:29]} g5 {[%emt 0:01:26]} 31. Rd1 {[%emt 0:00:52]} Bd5 {[%emt 0:12:58]} 32. Qe3 {[%emt 0:08:01]} Ke8 {[%emt 0:08:40]} 33. a4 {[%emt 0:01:56]} bxa4 {[%emt 0:01:02]} 34. bxa4 {[%emt 0:00:01]} h4 {[%emt 0:02:11]} 35. Qe2 {[%emt 0:01:18]} Kf7 {[%emt 0:03:28]} 36. Rd4 {[%emt 0:01:19]} Qb1+ {[%emt 0:00:40]} 37. Qd1 {[%emt 0:00:22]} Qb7 {[%emt 0:00:41]} 38. Qc2 {[%emt 0:00:53]} Kg7 {[%emt 0:00:42]} 39. Rd1 {[%emt 0:01:08]} Be5 {[%emt 0:00:38]} 40. Rb1 {[%emt 0:00:34]} Qa8 {[%emt 0:00:50]} 41. h3 {[%emt 0:33:05]} g4 {[%emt 0:04:24]} 42. Rb4 {[%emt 0:00:00]} f5 {[%emt 0:03:32]} 43. hxg4 {[%emt 0:00:00]} h3 {[%emt 0:02:29]} 44. Bd4 {[%emt 0:00:00]} Bxd4+ {[%emt 0:06:52]} 0-1

[Event "DLM Youth 2024"]
[Site "Tuebingen"]
[Date "2024.10.05"]
[Round "5"]
[White "Karle, Sam"]
[Black "Farokhi, Keyvan"]
[Result "0-1"]
[ECO "C70"]
[WhiteElo "2124"]
[BlackElo "2306"]
[Annotator "RC"]
[PlyCount "42"]
[EventDate "2024.10.03"]
[EventType "team-swiss"]
[EventRounds "7"]
[EventCountry "GER"]
[SourceTitle "playchess.com"]
[Source "ChessBase"]
[SourceQuality "1"]
[TimeControl "40/5400+30:1800+30"]

1. e4 {[%emt 0:00:03]} e5 {[%emt 0:00:13]} 2. Nf3 {[%emt 0:00:08]} Nc6 {[%emt 0:00:06]} 3. Bb5 {[%emt 0:00:07]} a6 {[%emt 0:00:06]} 4. Ba4 {[%emt 0:00:05]} f5 {[%emt 0:00:05]} 5. d4 {[%emt 0:00:08]} exd4 {[%emt 0:00:06]} 6. e5 {[%emt 0:00:14]} b5 {[%emt 0:00:07]} 7. Bb3 {[%emt 0:00:06]} Na5 {[%emt 0:00:04]} 8. Nxd4 {[%emt 0:01:47]} Nxb3 9. axb3 {[%emt 0:00:37]} Bb7 {[%emt 0:00:40]} 10. Nxf5 {[%emt 0:13:13]} d6 {[%emt 0:00:52]} 11. exd6 {[%emt 0:12:42]} Qd7 {[%emt 0:00:17]} 12. Ne3 {[%emt 0:14:30]} Bxd6 {[%emt 0:02:43]} 13. O-O {[%emt 0:06:10]} Nf6 {[%emt 0:03:25]} 14. c4 {[%emt 0:03:17]} O-O {[%emt 0:21:11]} 15. Nc3 {[%emt 0:00:44]} Rae8 {[%emt 0:01:54]} 16. c5 {[%emt 0:10:28]} Bxc5 {[%emt 0:00:32]} 17. Qxd7 {[%emt 0:00:11]} Nxd7 {[%emt 0:00:05]} 18. Nc2 {[%emt 0:03:40]} b4 {[%emt 0:15:18]} 19. Na4 {[%emt 0:00:12]} Bd6 {[%emt 0:00:08]} 20. Be3 {[%emt 0:00:47]} Bd5 {[%emt 0:00:16]} 21. Ne1 {[%emt 0:03:38]} Rxe3 {[%emt 0:01:46]} 0-1

[Event "DLM Youth 2024"]
[Site "Tuebingen"]
[Date "2024.10.05"]
[Round "5"]
[White "Butenandt, Svenja"]
[Black "Hinrichs, Paul"]
[Result "0-1"]
[ECO "D61"]
[WhiteElo "2121"]
[BlackElo "2264"]
[Annotator "RC"]
[PlyCount "80"]
[EventDate "2024.10.03"]
[EventType "team-swiss"]
[EventRounds "7"]
[EventCountry "GER"]
[SourceTitle "playchess.com"]
[Source "ChessBase"]
[SourceQuality "1"]
[TimeControl "40/5400+30:1800+30"]

1. d4 {[%emt 0:00:02]} d5 {[%emt 0:00:04]} 2. c4 {[%emt 0:00:03]} c6 {[%emt 0:00:03]} 3. Nc3 {[%emt 0:00:04]} Nf6 {[%emt 0:00:03]} 4. Nf3 {[%emt 0:00:05]} e6 {[%emt 0:00:03]} 5. Bg5 {[%emt 0:00:05]} h6 {[%emt 0:00:03]} 6. Bh4 {[%emt 0:00:04]} Be7 {[%emt 0:00:10]} 7. e3 {[%emt 0:00:09]} Nbd7 {[%emt 0:00:06]} 8. Qc2 {[%emt 0:00:31]} O-O {[%emt 0:00:12]} 9. Rd1 {[%emt 0:00:23]} b6 {[%emt 0:08:08]} 10. cxd5 {[%emt 0:07:20]} cxd5 {[%emt 0:00:48]} 11. Bb5 {[%emt 0:10:06]} a6 {[%emt 0:05:37]} 12. Bc6 {[%emt 0:13:02]} Ra7 {[%emt 0:00:32]} 13. Qa4 {[%emt 0:00:52]} Nb8 {[%emt 0:00:51]} 14. Bb5 {[%emt 0:12:37]} Rc7 {[%emt 0:05:03]} 15. Bd3 {[%emt 0:00:24]} b5 {[%emt 0:00:31]} 16. Qb3 {[%emt 0:02:20]} Nc6 {[%emt 0:00:18]} 17. Bg3 {[%emt 0:09:59]} Bd6 {[%emt 0:00:50]} 18. Bxd6 {[%emt 0:00:40]} Qxd6 {[%emt 0:00:02]} 19. Rc1 {[%emt 0:00:12]} Na5 {[%emt 0:04:49]} 20. Qd1 {[%emt 0:00:05]} Nc4 {[%emt 0:00:16]} 21. Qb3 {[%emt 0:05:35]} Na5 {[%emt 0:00:55]} 22. Qd1 {[%emt 0:00:06]} Qb4 {[%emt 0:00:08]} 23. Qd2 {[%emt 0:06:02]} Nc4 {[%emt 0:00:56]} 24. Bxc4 {[%emt 0:00:03]} dxc4 {[%emt 0:01:44]} 25. O-O {[%emt 0:01:42]} Bb7 {[%emt 0:00:58]} 26. Ne5 {[%emt 0:01:42]} Rfc8 {[%emt 0:02:29]} 27. Qe2 {[%emt 0:02:49]} Ne4 {[%emt 0:04:32]} 28. f3 {[%emt 0:03:25]} Nxc3 {[%emt 0:01:50]} 29. Rxc3 {[%emt 0:00:35]} f6 {[%emt 0:00:57]} 30. Ng4 {[%emt 0:03:09]} Qd6 {[%emt 0:01:57]} 31. Rfc1 {[%emt 0:02:50]} a5 {[%emt 0:01:52]} 32. Qc2 {[%emt 0:04:28]} b4 {[%emt 0:01:51]} 33. Qg6 {[%emt 0:00:02]} bxc3 {[%emt 0:01:20]} 34. Nxf6+ {[%emt 0:00:12]} Kf8 {[%emt 0:00:06]} 35. Nh7+ {[%emt 0:00:04]} Ke7 {[%emt 0:00:19]} 36. Qxg7+ {[%emt 0:00:04]} Kd8 {[%emt 0:00:18]} 37. Qg6 {[%emt 0:02:40]} cxb2 {[%emt 0:00:37]} 38. Rb1 {[%emt 0:00:10]} c3 {[%emt 0:00:22]} 39. Nf6 {[%emt 0:00:05]} Qf8 {[%emt 0:00:43]} 40. Nh7 {[%emt 0:00:16]} Qf7 {[%emt 0:00:33]} 0-1

[Event "DLM Youth 2024"]
[Site "Tuebingen"]
[Date "2024.10.05"]
[Round "5"]
[White "Moeller, Maurin"]
[Black "Hubert, Charlotte"]
[Result "1-0"]
[ECO "C54"]
[WhiteElo "2118"]
[BlackElo "1878"]
[Annotator "RC"]
[PlyCount "59"]
[EventDate "2024.10.03"]
[EventType "team-swiss"]
[EventRounds "7"]
[EventCountry "GER"]
[SourceTitle "playchess.com"]
[Source "ChessBase"]
[SourceQuality "1"]
[TimeControl "40/5400+30:1800+30"]

1. e4 {[%emt 0:00:08]} e5 {[%emt 0:00:48]} 2. Nf3 {[%emt 0:03:25]} Nc6 {[%emt 0:00:06]} 3. Bc4 {[%emt 0:01:20]} Nf6 {[%emt 0:00:09]} 4. d3 {[%emt 0:00:12]} Bc5 {[%emt 0:00:06]} 5. c3 {[%emt 0:00:13]} d6 {[%emt 0:00:08]} 6. Nbd2 {[%emt 0:01:32]} a5 {[%emt 0:00:33]} 7. Nf1 {[%emt 0:05:00]} h6 {[%emt 0:07:36]} 8. Ng3 {[%emt 0:07:55]} Be6 {[%emt 0:04:36]} 9. Bb3 {[%emt 0:03:25]} Ba7 {[%emt 0:02:58]} 10. O-O {[%emt 0:11:58]} O-O {[%emt 0:01:37]} 11. Bc2 {[%emt 0:08:25]} d5 {[%emt 0:11:46]} 12. exd5 {[%emt 0:00:57]} Bxd5 {[%emt 0:00:26]} 13. h3 {[%emt 0:04:49]} Qd7 {[%emt 0:04:39]} 14. Re1 {[%emt 0:01:34]} Rfe8 {[%emt 0:00:57]} 15. Be3 {[%emt 0:01:21]} b5 {[%emt 0:07:09]} 16. Nh4 {[%emt 0:07:12]} Be6 {[%emt 0:17:09]} 17. Bxa7 {[%emt 0:04:26]} Rxa7 {[%emt 0:00:51]} 18. Re3 {[%emt 0:00:44]} Nd5 {[%emt 0:03:56]} 19. Rf3 {[%emt 0:02:56]} b4 {[%emt 0:08:14]} 20. d4 {[%emt 0:04:55]} Nde7 {[%emt 0:06:05]} 21. Nh5 {[%emt 0:02:29]} Ng6 {[%emt 0:05:33]} 22. Rg3 {[%emt 0:03:23]} Nce7 {[%emt 0:01:12]} 23. Nxg6 {[%emt 0:00:28]} fxg6 {[%emt 0:01:05]} 24. Bxg6 {[%emt 0:00:04]} Rf8 {[%emt 0:01:55]} 25. Nxg7 {[%emt 0:04:33]} Nxg6 {[%emt 0:01:15]} 26. Rxg6 {[%emt 0:00:22]} Qf7 {[%emt 0:02:15]} 27. Nxe6+ {[%emt 0:01:21]} Qxg6 {[%emt 0:00:09]} 28. Nxf8 {[%emt 0:00:03]} Kxf8 {[%emt 0:00:07]} 29. dxe5 {[%emt 0:00:20]} Ke7 {[%emt 0:01:11]} 30. Qd6+ {[%emt 0:00:30]} 1-0

[Event "DLM Youth 2024"]
[Site "Tuebingen"]
[Date "2024.10.05"]
[Round "5"]
[White "Shen, Tingrui"]
[Black "Groeschel, Karoline"]
[Result "1-0"]
[ECO "E07"]
[WhiteElo "2102"]
[BlackElo "1968"]
[Annotator "RC"]
[PlyCount "119"]
[EventDate "2024.10.03"]
[EventType "team-swiss"]
[EventRounds "7"]
[EventCountry "GER"]
[SourceTitle "playchess.com"]
[Source "ChessBase"]
[SourceQuality "1"]
[TimeControl "40/5400+30:1800+30"]

1. Nf3 {[%emt 0:00:35]} d5 {[%emt 0:00:11]} 2. g3 {[%emt 0:01:06]} Nd7 {[%emt 0:00:10]} 3. d4 {[%emt 0:01:21]} e6 {[%emt 0:00:11]} 4. Bg2 {[%emt 0:00:30]} Ngf6 {[%emt 0:00:14]} 5. O-O {[%emt 0:00:37]} Be7 {[%emt 0:00:05]} 6. c4 {[%emt 0:00:38]} O-O {[%emt 0:00:08]} 7. Nc3 {[%emt 0:00:59]} dxc4 {[%emt 0:05:22]} 8. e3 {[%emt 0:07:52]} c6 {[%emt 0:06:18]} 9. Nd2 {[%emt 0:00:24]} e5 {[%emt 0:08:32]} 10. Nxc4 {[%emt 0:00:31]} exd4 {[%emt 0:00:13]} 11. exd4 {[%emt 0:05:43]} Nb6 {[%emt 0:03:53]} 12. Nxb6 {[%emt 0:06:28]} Qxb6 {[%emt 0:02:26]} 13. Qe2 {[%emt 0:02:16]} Be6 {[%emt 0:03:06]} 14. Be3 {[%emt 0:02:17]} Qa5 {[%emt 0:03:36]} 15. a3 {[%emt 0:00:54]} Nd5 {[%emt 0:07:45]} 16. Nxd5 {[%emt 0:05:07]} Bxd5 {[%emt 0:00:14]} 17. Bd2 {[%emt 0:00:10]} Qd8 {[%emt 0:00:12]} 18. Bxd5 {[%emt 0:00:22]} cxd5 {[%emt 0:00:09]} 19. Rac1 {[%emt 0:00:54]} Bf6 {[%emt 0:00:49]} 20. Be3 {[%emt 0:05:43]} Re8 {[%emt 0:01:40]} 21. Qb5 {[%emt 0:01:13]} b6 {[%emt 0:04:47]} 22. Rc6 {[%emt 0:11:28]} Re4 {[%emt 0:10:14]} 23. Qd3 {[%emt 0:14:08]} Re6 {[%emt 0:07:58]} 24. Rc3 {[%emt 0:05:31]} Rc8 {[%emt 0:03:48]} 25. Rfc1 {[%emt 0:00:31]} Rxc3 {[%emt 0:01:31]} 26. Rxc3 {[%emt 0:01:38]} Qd7 {[%emt 0:03:08]} 27. Qc2 {[%emt 0:01:57]} Bd8 {[%emt 0:01:46]} 28. Rc8 {[%emt 0:03:26]} f6 {[%emt 0:03:39]} 29. Ra8 {[%emt 0:01:47]} Rc6 {[%emt 0:02:19]} 30. Rxd8+ {[%emt 0:01:53]} Qxd8 {[%emt 0:01:55]} 31. Qxc6 {[%emt 0:00:17]} h6 {[%emt 0:01:52]} 32. Bf4 {[%emt 0:00:47]} Kh7 {[%emt 0:00:18]} 33. Bd6 {[%emt 0:00:49]} Qg8 {[%emt 0:00:29]} 34. Qd7 {[%emt 0:00:53]} a6 {[%emt 0:00:24]} 35. Bc7 {[%emt 0:02:20]} b5 {[%emt 0:00:20]} 36. Bf4 {[%emt 0:00:31]} Kh8 {[%emt 0:01:18]} 37. Qc6 {[%emt 0:00:24]} Qf7 {[%emt 0:00:26]} 38. Qxa6 {[%emt 0:02:57]} Qe8 {[%emt 0:00:37]} 39. Be3 {[%emt 0:01:25]} Qe4 {[%emt 0:00:42]} 40. Qc6 {[%emt 0:03:31]} Qb1+ {[%emt 0:00:59]} 41. Qc1 {[%emt 0:30:21]} Qe4 {[%emt 0:30:11]} 42. h3 {[%emt 0:01:04]} Kh7 {[%emt 0:00:40]} 43. Qf1 {[%emt 0:00:29]} Qe8 {[%emt 0:00:36]} 44. b3 {[%emt 0:00:36]} Qc6 {[%emt 0:01:14]} 45. Qd3+ {[%emt 0:00:51]} Kg8 {[%emt 0:00:23]} 46. Qg6 {[%emt 0:00:17]} Kf8 {[%emt 0:00:26]} 47. Bd2 {[%emt 0:00:31]} Qe6 {[%emt 0:00:49]} 48. Qh5 {[%emt 0:02:12]} Qe4 {[%emt 0:00:28]} 49. Bb4+ {[%emt 0:00:13]} Kg8 {[%emt 0:00:11]} 50. Qd1 {[%emt 0:00:20]} Qe6 {[%emt 0:00:41]} 51. Qf3 {[%emt 0:01:02]} Qc6 {[%emt 0:00:57]} 52. Kg2 {[%emt 0:00:30]} Qe6 {[%emt 0:01:48]} 53. Qg4 {[%emt 0:00:38]} Qc6 {[%emt 0:00:38]} 54. Bc5 {[%emt 0:00:22]} Kf7 {[%emt 0:00:46]} 55. Qf5 {[%emt 0:01:17]} g6 {[%emt 0:01:00]} 56. Qf4 {[%emt 0:00:11]} g5 {[%emt 0:02:37]} 57. Qf5 {[%emt 0:00:49]} Kg7 {[%emt 0:01:08]} 58. Be7 {[%emt 0:00:48]} h5 {[%emt 0:00:23]} 59. a4 {[%emt 0:00:50]} Kf7 {[%emt 0:02:11]} 60. Qxf6+ {[%emt 0:00:19]} 1-0

[Event "DLM Youth 2024"]
[Site "Tuebingen"]
[Date "2024.10.05"]
[Round "5"]
[White "Braeutigam, Katerina"]
[Black "Li, Yunqi"]
[Result "0-1"]
[ECO "D02"]
[WhiteElo "2099"]
[BlackElo "2004"]
[Annotator "RC"]
[PlyCount "118"]
[EventDate "2024.10.03"]
[EventType "team-swiss"]
[EventRounds "7"]
[EventCountry "GER"]
[SourceTitle "playchess.com"]
[Source "ChessBase"]
[SourceQuality "1"]
[TimeControl "40/5400+30:1800+30"]

1. d4 {[%emt 0:00:02]} Nf6 {[%emt 0:00:05]} 2. Bf4 {[%emt 0:00:05]} d5 {[%emt 0:00:04]} 3. e3 {[%emt 0:00:08]} c5 {[%emt 0:00:07]} 4. c3 {[%emt 0:00:08]} Nc6 {[%emt 0:00:06]} 5. Nf3 {[%emt 0:02:11]} Qb6 {[%emt 0:00:15]} 6. Qb3 {[%emt 0:00:54]} c4 {[%emt 0:00:07]} 7. Qxb6 {[%emt 0:00:46]} axb6 {[%emt 0:00:05]} 8. Na3 {[%emt 0:02:20]} Bf5 {[%emt 0:08:33]} 9. Nh4 {[%emt 0:14:10]} Bd7 {[%emt 0:04:20]} 10. Bc7 {[%emt 0:15:48]} Ra6 {[%emt 0:08:57]} 11. Be2 {[%emt 0:09:31]} Ne4 {[%emt 0:11:04]} 12. Nc2 {[%emt 0:03:21]} e6 {[%emt 0:03:59]} 13. Nf3 {[%emt 0:04:05]} Bd6 {[%emt 0:01:53]} 14. Bxd6 {[%emt 0:00:12]} Nxd6 {[%emt 0:00:04]} 15. Nd2 {[%emt 0:06:08]} b5 {[%emt 0:03:47]} 16. O-O {[%emt 0:04:36]} O-O {[%emt 0:00:12]} 17. Rfe1 {[%emt 0:02:47]} Be8 {[%emt 0:17:21]} 18. Bh5 {[%emt 0:03:21]} Ra8 {[%emt 0:06:08]} 19. g3 {[%emt 0:05:54]} f6 {[%emt 0:10:11]} 20. Bxe8 {[%emt 0:01:03]} Raxe8 {[%emt 0:00:05]} 21. e4 {[%emt 0:03:24]} dxe4 {[%emt 0:03:20]} 22. Nxe4 {[%emt 0:00:23]} Nxe4 {[%emt 0:01:08]} 23. Rxe4 {[%emt 0:00:09]} e5 {[%emt 0:01:12]} 24. d5 {[%emt 0:07:24]} Na7 {[%emt 0:00:45]} 25. a4 {[%emt 0:07:51]} bxa4 {[%emt 0:00:29]} 26. Rxa4 {[%emt 0:03:23]} Nc8 {[%emt 0:00:04]} 27. Re2 {[%emt 0:02:46]} Nd6 {[%emt 0:00:08]} 28. Na3 {[%emt 0:00:48]} Rc8 {[%emt 0:04:32]} 29. f4 {[%emt 0:00:39]} Rfe8 {[%emt 0:02:24]} 30. fxe5 {[%emt 0:00:27]} Rxe5 {[%emt 0:00:21]} 31. Rxe5 {[%emt 0:00:29]} fxe5 {[%emt 0:00:04]} 32. Nc2 {[%emt 0:00:40]} Rf8 {[%emt 0:02:05]} 33. Ne3 {[%emt 0:00:27]} h6 {[%emt 0:00:58]} 34. Kg2 {[%emt 0:00:37]} Kh7 {[%emt 0:00:12]} 35. Ra1 {[%emt 0:00:26]} b5 {[%emt 0:02:33]} 36. Ng4 {[%emt 0:00:34]} e4 {[%emt 0:02:34]} 37. Re1 {[%emt 0:00:31]} Rf5 {[%emt 0:02:24]} 38. Ne3 {[%emt 0:00:14]} Rf3 {[%emt 0:00:09]} 39. Re2 {[%emt 0:00:45]} h5 {[%emt 0:00:51]} 40. Nc2 {[%emt 0:00:27]} Kg6 {[%emt 0:04:11]} 41. Nd4 {[%emt 0:10:36]} Rd3 {[%emt 0:01:50]} 42. Nc6 {[%emt 0:16:48]} Kg5 {[%emt 0:02:56]} 43. h4+ {[%emt 0:02:45]} Kg4 {[%emt 0:15:38]} 44. Ne5+ {[%emt 0:01:21]} Kf5 {[%emt 0:00:05]} 45. Nc6 {[%emt 0:00:51]} Kg4 {[%emt 0:01:36]} 46. Ne5+ {[%emt 0:00:07]} Kf5 {[%emt 0:00:05]} 47. Nc6 {[%emt 0:00:49]} Kg6 {[%emt 0:02:06]} 48. Nb4 {[%emt 0:00:39]} Kf6 {[%emt 0:02:27]} 49. Kf2 {[%emt 0:00:35]} Ke5 {[%emt 0:03:26]} 50. Kg2 {[%emt 0:00:32]} Nf5 {[%emt 0:01:21]} 51. Nxd3+ {[%emt 0:00:27]} cxd3 {[%emt 0:00:05]} 52. Rd2 {[%emt 0:00:30]} Ne3+ {[%emt 0:00:34]} 53. Kf2 {[%emt 0:00:33]} Nc2 {[%emt 0:01:15]} 54. Kf1 {[%emt 0:00:29]} Kxd5 {[%emt 0:00:17]} 55. b3 {[%emt 0:00:25]} Kc5 {[%emt 0:00:26]} 56. Kg1 {[%emt 0:00:37]} e3 {[%emt 0:00:14]} 57. Rxd3 {[%emt 0:00:24]} e2 {[%emt 0:00:04]} 58. Re3 {[%emt 0:00:31]} Nxe3 {[%emt 0:00:08]} 59. Kf2 {[%emt 0:00:04]} Nf5 {[%emt 0:01:12]} 0-1

[Event "DLM Youth 2024"]
[Site "Tuebingen"]
[Date "2024.10.05"]
[Round "5"]
[White "Sauer, Tim"]
[Black "Belin, Anton"]
[Result "0-1"]
[ECO "A17"]
[WhiteElo "2081"]
[BlackElo "1994"]
[Annotator "RC"]
[PlyCount "62"]
[EventDate "2024.10.03"]
[EventType "team-swiss"]
[EventRounds "7"]
[EventCountry "GER"]
[SourceTitle "playchess.com"]
[Source "ChessBase"]
[SourceQuality "1"]
[TimeControl "40/5400+30:1800+30"]

1. c4 {[%emt 0:00:03]} e6 {[%emt 0:00:24]} 2. Nf3 {[%emt 0:00:06]} Nf6 {[%emt 0:00:35]} 3. Nc3 {[%emt 0:00:33]} d5 {[%emt 0:00:27]} 4. e3 {[%emt 0:00:08]} c5 {[%emt 0:01:14]} 5. cxd5 {[%emt 0:08:12]} exd5 {[%emt 0:00:56]} 6. d4 {[%emt 0:01:16]} c4 {[%emt 0:02:59]} 7. Ne5 {[%emt 0:04:04]} Nc6 {[%emt 0:02:20]} 8. Be2 {[%emt 0:07:07]} Be7 {[%emt 0:02:44]} 9. O-O {[%emt 0:04:58]} O-O {[%emt 0:03:09]} 10. b3 {[%emt 0:04:37]} cxb3 {[%emt 0:02:33]} 11. Qxb3 {[%emt 0:03:40]} Na5 {[%emt 0:06:28]} 12. Qc2 {[%emt 0:05:20]} Be6 {[%emt 0:01:30]} 13. Bd2 {[%emt 0:07:09]} Rc8 {[%emt 0:02:52]} 14. Rab1 {[%emt 0:08:40]} Ne4 {[%emt 0:01:50]} 15. Bd3 {[%emt 0:04:30]} f6 {[%emt 0:05:03]} 16. Nf3 {[%emt 0:03:18]} f5 {[%emt 0:00:47]} 17. Ne5 {[%emt 0:12:32]} b6 {[%emt 0:05:24]} 18. Ba6 {[%emt 0:08:41]} Rc7 {[%emt 0:01:21]} 19. Qd3 {[%emt 0:03:37]} Nc4 {[%emt 0:04:44]} 20. Nxc4 {[%emt 0:02:04]} dxc4 {[%emt 0:00:07]} 21. Qe2 {[%emt 0:00:27]} Nxc3 {[%emt 0:00:21]} 22. Bxc3 {[%emt 0:00:05]} Bd5 {[%emt 0:00:05]} 23. Rfc1 {[%emt 0:06:57]} Ba3 {[%emt 0:05:19]} 24. Bb2 {[%emt 0:00:26]} Bxb2 {[%emt 0:01:16]} 25. Rxb2 {[%emt 0:00:11]} f4 {[%emt 0:05:23]} 26. exf4 {[%emt 0:03:34]} Rxf4 {[%emt 0:00:57]} 27. Bxc4 {[%emt 0:00:58]} Bxc4 {[%emt 0:00:23]} 28. Rxc4 {[%emt 0:00:33]} Rxd4 {[%emt 0:00:11]} 29. Qe6+ {[%emt 0:00:42]} Kh8 {[%emt 0:00:01]} 30. Re2 {[%emt 0:00:31]} Rd1+ {[%emt 0:00:11]} 31. Re1 {[%emt 0:00:07]} Rxc4 {[%emt 0:00:45]} 0-1

[Event "DLM Youth 2024"]
[Site "Tuebingen"]
[Date "2024.10.05"]
[Round "5"]
[White "Udelnov, Valentin"]
[Black "Nechitaylo, Nikita"]
[Result "1/2-1/2"]
[ECO "B42"]
[WhiteElo "2045"]
[BlackElo "2252"]
[Annotator "RC"]
[PlyCount "122"]
[EventDate "2024.10.03"]
[EventType "team-swiss"]
[EventRounds "7"]
[EventCountry "GER"]
[SourceTitle "playchess.com"]
[Source "ChessBase"]
[SourceQuality "1"]
[TimeControl "40/5400+30:1800+30"]

1. e4 {[%emt 0:00:03]} c5 {[%emt 0:00:03]} 2. Nf3 {[%emt 0:00:05]} e6 {[%emt 0:00:02]} 3. d4 {[%emt 0:00:05]} cxd4 {[%emt 0:00:03]} 4. Nxd4 {[%emt 0:00:05]} a6 {[%emt 0:00:01]} 5. Bd3 {[%emt 0:00:18]} Bc5 {[%emt 0:00:04]} 6. Nb3 {[%emt 0:00:09]} Ba7 {[%emt 0:00:02]} 7. Qe2 {[%emt 0:00:50]} d6 {[%emt 0:00:28]} 8. Be3 {[%emt 0:00:11]} Nc6 {[%emt 0:00:07]} 9. c4 {[%emt 0:03:56]} Nf6 {[%emt 0:00:07]} 10. Nc3 {[%emt 0:01:54]} O-O {[%emt 0:00:09]} 11. O-O {[%emt 0:00:22]} e5 {[%emt 0:00:53]} 12. Bxa7 {[%emt 0:04:42]} Rxa7 {[%emt 0:00:03]} 13. Rfd1 {[%emt 0:05:22]} Be6 {[%emt 0:00:16]} 14. Qe3 {[%emt 0:06:42]} Qb8 {[%emt 0:00:19]} 15. Bf1 {[%emt 0:01:04]} b6 {[%emt 0:02:40]} 16. h3 {[%emt 0:07:08]} Rc8 {[%emt 0:02:37]} 17. Rd2 {[%emt 0:00:52]} Ne7 {[%emt 0:01:50]} 18. Rad1 {[%emt 0:03:36]} Ne8 {[%emt 0:00:13]} 19. Na4 {[%emt 0:19:15]} b5 {[%emt 0:32:41]} 20. Nb6 {[%emt 0:00:15]} Rc6 {[%emt 0:01:01]} 21. c5 {[%emt 0:00:44]} Bxb3 {[%emt 0:33:24]} 22. axb3 {[%emt 0:00:11]} h6 {[%emt 0:06:38]} 23. b4 {[%emt 0:01:47]} Kh7 {[%emt 0:02:06]} 24. h4 {[%emt 0:10:49]} Nc8 {[%emt 0:03:05]} 25. Nxc8 {[%emt 0:04:04]} Qxc8 {[%emt 0:00:04]} 26. cxd6 {[%emt 0:00:08]} Rd7 {[%emt 0:02:55]} 27. Qh3 {[%emt 0:00:51]} f6 {[%emt 0:01:27]} 28. Qf5+ {[%emt 0:10:05]} g6 {[%emt 0:02:16]} 29. Qe6 {[%emt 0:00:51]} Qd8 {[%emt 0:00:15]} 30. h5 {[%emt 0:00:24]} Ng7 {[%emt 0:03:50]} 31. hxg6+ {[%emt 0:00:45]} Kxg6 {[%emt 0:00:04]} 32. Qg4+ {[%emt 0:04:45]} Kh7 {[%emt 0:00:44]} 33. Be2 {[%emt 0:04:52]} Rdxd6 {[%emt 0:03:47]} 34. Rxd6 {[%emt 0:00:06]} Rxd6 {[%emt 0:00:02]} 35. Rc1 {[%emt 0:00:09]} Qb6 {[%emt 0:02:35]} 36. Rc3 {[%emt 0:00:44]} Qb7 {[%emt 0:00:59]} 37. Rg3 {[%emt 0:00:37]} Qf7 {[%emt 0:00:12]} 38. Bd1 {[%emt 0:01:22]} h5 {[%emt 0:00:30]} 39. Qf3 {[%emt 0:00:15]} Kh6 {[%emt 0:00:45]} 40. Bb3 {[%emt 0:00:23]} Qe8 {[%emt 0:00:26]} 41. Bd5 {[%emt 0:15:12]} Qd7 {[%emt 0:15:14]} 42. Bg8 {[%emt 0:09:03]} f5 {[%emt 0:05:51]} 43. exf5 {[%emt 0:00:01]} Qxf5 {[%emt 0:00:01]} 44. Qb7 {[%emt 0:07:34]} Qf6 {[%emt 0:08:25]} 45. Qe4 {[%emt 0:02:29]} Qf5 {[%emt 0:00:06]} 46. Qb7 {[%emt 0:03:04]} Qf6 {[%emt 0:00:09]} 47. Qe4 {[%emt 0:01:12]} Qf5 {[%emt 0:00:01]} 48. Re3 {[%emt 0:03:40]} Qxe4 {[%emt 0:01:52]} 49. Rxe4 {[%emt 0:00:01]} Rd1+ {[%emt 0:00:08]} 50. Kh2 {[%emt 0:00:07]} Rd2 {[%emt 0:00:04]} 51. b3 {[%emt 0:00:45]} Rd8 {[%emt 0:03:15]} 52. Bf7 {[%emt 0:01:17]} Rd7 {[%emt 0:00:03]} 53. Bg8 {[%emt 0:00:09]} Rd8 {[%emt 0:00:51]} 54. Bf7 {[%emt 0:00:06]} Kg5 {[%emt 0:00:41]} 55. Re3 {[%emt 0:00:41]} Rd4 {[%emt 0:00:44]} 56. Bg8 {[%emt 0:01:06]} e4 {[%emt 0:00:31]} 57. Bh7 {[%emt 0:00:40]} Nf5 {[%emt 0:00:14]} 58. Rc3 {[%emt 0:00:28]} Ne7 {[%emt 0:00:40]} 59. Rc7 {[%emt 0:01:07]} Kf6 {[%emt 0:00:02]} 60. Ra7 {[%emt 0:00:26]} Rxb4 {[%emt 0:00:48]} 61. Rxa6+ {[%emt 0:00:23]} Kg7 {[%emt 0:00:24]} 1/2-1/2